Workbook

Sheet Sheet1
B1: KODIAK Excel
B4: Symbol | C4: MAREL
B5: Period | C5: 3M | D5: * Change the period to for example Y for entire year or 9M for first 9 months of the year
B6: End year | C6: 2019 | D6: * You can change the ending year
C8: =D8-1 -> 2013 | D8: =E8-1 -> 2014 | E8: =F8-1 -> 2015 | F8: =G8-1 -> 2016 | G8: =H8-1 -> 2017 | H8: =I8-1 -> 2018 | I8: =$C$6 -> 2019
B9: Multiples and key figures | C9: =$C$5 -> 3M | D9: =$C$5 -> 3M | E9: =$C$5 -> 3M | F9: =$C$5 -> 3M | G9: =$C$5 -> 3M | H9: =$C$5 -> 3M | I9: =$C$5 -> 3M
B10: Report release date | C10: =IFERROR(_xll.QuestorReportReleaseSYP($C$4,C$23,C$24),"-") -> 2013-04-22 | D10: =IFERROR(_xll.QuestorReportReleaseSYP($C$4,D$23,D$24),"-") -> 2014-04-28 | E10: =IFERROR(_xll.QuestorReportReleaseSYP($C$4,E$23,E$24),"-") -> 2015-04-29 | F10: =IFERROR(_xll.QuestorReportReleaseSYP($C$4,F$23,F$24),"-") -> 2016-04-25 | G10: =IFERROR(_xll.QuestorReportReleaseSYP($C$4,G$23,G$24),"-") -> 2017-05-03 | H10: =IFERROR(_xll.QuestorReportReleaseSYP($C$4,H$23,H$24),"-") -> 2018-04-23 | I10: =IFERROR(_xll.QuestorReportReleaseSYP($C$4,I$23,I$24),"-") -> 2019-04-29
B11: Last Price (on release date) | C11: =IFERROR(_xll.LastPriceD($C$4,C$10),"-") -> 145.5 | D11: =IFERROR(_xll.LastPriceD($C$4,D$10),"-") -> 115 | E11: =IFERROR(_xll.LastPriceD($C$4,E$10),"-") -> 171 | F11: =IFERROR(_xll.LastPriceD($C$4,F$10),"-") -> 241.5 | G11: =IFERROR(_xll.LastPriceD($C$4,G$10),"-") -> 346 | H11: =IFERROR(_xll.LastPriceD($C$4,H$10),"-") -> 389.5 | I11: =IFERROR(_xll.LastPriceD($C$4,I$10),"-") -> 541
B12: Change day after release date | C12: =IFERROR(_xll.LastPriceD($C$4,_xll.NextBusinessDay(C$10))/C11-1,"-") -> 0.003436426117 | D12: =IFERROR(_xll.LastPriceD($C$4,_xll.NextBusinessDay(D$10))/D11-1,"-") -> -0.08260869565 | E12: =IFERROR(_xll.LastPriceD($C$4,_xll.NextBusinessDay(E$10))/E11-1,"-") -> 0.02339181287 | F12: =IFERROR(_xll.LastPriceD($C$4,_xll.NextBusinessDay(F$10))/F11-1,"-") -> 0.04140786749 | G12: =IFERROR(_xll.LastPriceD($C$4,_xll.NextBusinessDay(G$10))/G11-1,"-") -> 0.04913294798 | H12: =IFERROR(_xll.LastPriceD($C$4,_xll.NextBusinessDay(H$10))/H11-1,"-") -> -0.001283697047 | I12: =IFERROR(_xll.LastPriceD($C$4,_xll.NextBusinessDay(I$10))/I11-1,"-") -> 0
B13: Issued shares (millions) | C13: =IFERROR(_xll.TotalIssueD($C$4,C$10),"-") -> 735568997 | D13: =IFERROR(_xll.TotalIssueD($C$4,D$10),"-") -> 735568997 | E13: =IFERROR(_xll.TotalIssueD($C$4,E$10),"-") -> 735568997 | F13: =IFERROR(_xll.TotalIssueD($C$4,F$10),"-") -> 735568997 | G13: =IFERROR(_xll.TotalIssueD($C$4,G$10),"-") -> 735568997 | H13: =IFERROR(_xll.TotalIssueD($C$4,H$10),"-") -> 735568997 | I13: =IFERROR(_xll.TotalIssueD($C$4,I$10),"-") -> 671007916
B14: Treasury shares (millions) | C14: =IFERROR(_xll.OwnSharesD($C$4,C$10),"-") -> - | D14: =IFERROR(_xll.OwnSharesD($C$4,D$10),"-") -> 241800 | E14: =IFERROR(_xll.OwnSharesD($C$4,E$10),"-") -> 9835400 | F14: =IFERROR(_xll.OwnSharesD($C$4,F$10),"-") -> 20102550 | G14: =IFERROR(_xll.OwnSharesD($C$4,G$10),"-") -> 24043150 | H14: =IFERROR(_xll.OwnSharesD($C$4,H$10),"-") -> 51747226 | I14: =IFERROR(_xll.OwnSharesD($C$4,I$10),"-") -> 11279814
B15: Outstanding shares (millions) | C15: =IFERROR(C13-C14,"-") -> - | D15: =IFERROR(D13-D14,"-") -> 735327197 | E15: =IFERROR(E13-E14,"-") -> 725733597 | F15: =IFERROR(F13-F14,"-") -> 715466447 | G15: =IFERROR(G13-G14,"-") -> 711525847 | H15: =IFERROR(H13-H14,"-") -> 683821771 | I15: =IFERROR(I13-I14,"-") -> 659728102
B16: Market Cap (ISK millions) | C16: =IFERROR(C15*C11,"-") -> - | D16: =IFERROR(D15*D11,"-") -> 84562627655 | E16: =IFERROR(E15*E11,"-") -> 124100445087 | F16: =IFERROR(F15*F11,"-") -> 1.72785147e+11 | G16: =IFERROR(G15*G11,"-") -> 246187943062 | H16: =IFERROR(H15*H11,"-") -> 2.663485798e+11 | I16: =IFERROR(I15*I11,"-") -> 356912903182
B17: Report currency | C17: =IFERROR(_xll.QuestorReportCurrency($C$4,C$23,C$24),"-") -> EUR | D17: =IFERROR(_xll.QuestorReportCurrency($C$4,D$23,D$24),"-") -> EUR | E17: =IFERROR(_xll.QuestorReportCurrency($C$4,E$23,E$24),"-") -> EUR | F17: =IFERROR(_xll.QuestorReportCurrency($C$4,F$23,F$24),"-") -> EUR | G17: =IFERROR(_xll.QuestorReportCurrency($C$4,G$23,G$24),"-") -> EUR | H17: =IFERROR(_xll.QuestorReportCurrency($C$4,H$23,H$24),"-") -> EUR | I17: =IFERROR(_xll.QuestorReportCurrency($C$4,I$23,I$24),"-") -> EUR
B18: FX rate (Central bank daily rate) | C18: =IFERROR(_xll.CBCurrencyAveRateD(C$17,C$10),"-") -> 152.7 | D18: =IFERROR(_xll.CBCurrencyAveRateD(D$17,D$10),"-") -> 155.5 | E18: =IFERROR(_xll.CBCurrencyAveRateD(E$17,E$10),"-") -> 146.6 | F18: =IFERROR(_xll.CBCurrencyAveRateD(F$17,F$10),"-") -> 140.33 | G18: =IFERROR(_xll.CBCurrencyAveRateD(G$17,G$10),"-") -> 115.85 | H18: =IFERROR(_xll.CBCurrencyAveRateD(H$17,H$10),"-") -> 123.23 | I18: =IFERROR(_xll.CBCurrencyAveRateD(I$17,I$10),"-") -> 136.2
B19: Market Cap (EUR millions) | C19: =IFERROR(C16/C18,"-") -> - | D19: =IFERROR(D16/D18,"-") -> 543811110.3 | E19: =IFERROR(E16/E18,"-") -> 846524182 | F19: =IFERROR(F16/F18,"-") -> 1231277325 | G19: =IFERROR(G16/G18,"-") -> 2125057774 | H19: =IFERROR(H16/H18,"-") -> 2161393977 | I19: =IFERROR(I16/I18,"-") -> 2620505897
B20: P/E 12M (on release date including new financials) | C20: =IFERROR(_xll.QuestorPriceToEarningsSD($C$4,C$10),"-") -> 24.79958883 | D20: =IFERROR(_xll.QuestorPriceToEarningsSD($C$4,D$10),"-") -> 41.74492288 | E20: =IFERROR(_xll.QuestorPriceToEarningsSD($C$4,E$10),"-") -> 32.28297544 | F20: =IFERROR(_xll.QuestorPriceToEarningsSD($C$4,F$10),"-") -> 21.29206136 | G20: =IFERROR(_xll.QuestorPriceToEarningsSD($C$4,G$10),"-") -> 25.4677889 | H20: =IFERROR(_xll.QuestorPriceToEarningsSD($C$4,H$10),"-") -> 20.81245224 | I20: =IFERROR(_xll.QuestorPriceToEarningsSD($C$4,I$10),"-") -> 20.73185045
B21: EV/EBITDA 12M (on release date including new financials) | C21: =IFERROR(_xll.QuestorEVEBITDASD($C$4,C$10),"-") -> 12.4665338 | D21: =IFERROR(_xll.QuestorEVEBITDASD($C$4,D$10),"-") -> 12.40114266 | E21: =IFERROR(_xll.QuestorEVEBITDASD($C$4,E$10),"-") -> 11.4539898 | F21: =IFERROR(_xll.QuestorEVEBITDASD($C$4,F$10),"-") -> 13.25027063 | G21: =IFERROR(_xll.QuestorEVEBITDASD($C$4,G$10),"-") -> 13.78962729 | H21: =IFERROR(_xll.QuestorEVEBITDASD($C$4,H$10),"-") -> 12.65536257 | I21: =IFERROR(_xll.QuestorEVEBITDASD($C$4,I$10),"-") -> 13.93983537
C23: =D23-1 -> 2013 | D23: =E23-1 -> 2014 | E23: =F23-1 -> 2015 | F23: =G23-1 -> 2016 | G23: =H23-1 -> 2017 | H23: =I23-1 -> 2018 | I23: =$C$6 -> 2019
A24: Key | B24: Income Statement | C24: =$C$5 -> 3M | D24: =$C$5 -> 3M | E24: =$C$5 -> 3M | F24: =$C$5 -> 3M | G24: =$C$5 -> 3M | H24: =$C$5 -> 3M | I24: =$C$5 -> 3M
A25: 110000 | B25: =_xll.QuestorKeyNameEN(A25) -> Revenues | C25: =IFERROR(_xll.QuestorKeyLookup($C$4,C$23,C$24,$A25),"-") -> 158028000 | D25: =IFERROR(_xll.QuestorKeyLookup($C$4,D$23,D$24,$A25),"-") -> 154757000 | E25: =IFERROR(_xll.QuestorKeyLookup($C$4,E$23,E$24,$A25),"-") -> 209311000 | F25: =IFERROR(_xll.QuestorKeyLookup($C$4,F$23,F$24,$A25),"-") -> 220631000 | G25: =IFERROR(_xll.QuestorKeyLookup($C$4,G$23,G$24,$A25),"-") -> 252464000 | H25: =IFERROR(_xll.QuestorKeyLookup($C$4,H$23,H$24,$A25),"-") -> 288400000 | I25: =IFERROR(_xll.QuestorKeyLookup($C$4,I$23,I$24,$A25),"-") -> 324600000
A26: 111000 | B26: =_xll.QuestorKeyNameEN(A26) -> Sale of goods and services | C26: =IFERROR(_xll.QuestorKeyLookup($C$4,C$23,C$24,$A26),"-") -> 158028000 | D26: =IFERROR(_xll.QuestorKeyLookup($C$4,D$23,D$24,$A26),"-") -> 154757000 | E26: =IFERROR(_xll.QuestorKeyLookup($C$4,E$23,E$24,$A26),"-") -> 209311000 | F26: =IFERROR(_xll.QuestorKeyLookup($C$4,F$23,F$24,$A26),"-") -> 220631000 | G26: =IFERROR(_xll.QuestorKeyLookup($C$4,G$23,G$24,$A26),"-") -> 252464000 | H26: =IFERROR(_xll.QuestorKeyLookup($C$4,H$23,H$24,$A26),"-") -> 288400000 | I26: =IFERROR(_xll.QuestorKeyLookup($C$4,I$23,I$24,$A26),"-") -> 324600000
A27: 112512 | B27: =_xll.QuestorKeyNameEN(A27) -> Sales - Poultry | C27: =IFERROR(_xll.QuestorKeyLookup($C$4,C$23,C$24,$A27),"-") -> 77185000 | D27: =IFERROR(_xll.QuestorKeyLookup($C$4,D$23,D$24,$A27),"-") -> 79779000 | E27: =IFERROR(_xll.QuestorKeyLookup($C$4,E$23,E$24,$A27),"-") -> 108605000 | F27: =IFERROR(_xll.QuestorKeyLookup($C$4,F$23,F$24,$A27),"-") -> 124441000 | G27: =IFERROR(_xll.QuestorKeyLookup($C$4,G$23,G$24,$A27),"-") -> 134956000 | H27: =IFERROR(_xll.QuestorKeyLookup($C$4,H$23,H$24,$A27),"-") -> 157400000 | I27: =IFERROR(_xll.QuestorKeyLookup($C$4,I$23,I$24,$A27),"-") -> 174000000
B28: Change from previous year | D28: =IFERROR(D27/C27-1,"-") -> 0.03360756624 | E28: =IFERROR(E27/D27-1,"-") -> 0.3613231552 | F28: =IFERROR(F27/E27-1,"-") -> 0.1458128079 | G28: =IFERROR(G27/F27-1,"-") -> 0.08449787449 | H28: =IFERROR(H27/G27-1,"-") -> 0.1663060553 | I28: =IFERROR(I27/H27-1,"-") -> 0.1054637865
A29: 112513 | B29: =_xll.QuestorKeyNameEN(A29) -> Sales - Fish | C29: =IFERROR(_xll.QuestorKeyLookup($C$4,C$23,C$24,$A29),"-") -> 26807000 | D29: =IFERROR(_xll.QuestorKeyLookup($C$4,D$23,D$24,$A29),"-") -> 25113000 | E29: =IFERROR(_xll.QuestorKeyLookup($C$4,E$23,E$24,$A29),"-") -> 30844000 | F29: =IFERROR(_xll.QuestorKeyLookup($C$4,F$23,F$24,$A29),"-") -> 31514000 | G29: =IFERROR(_xll.QuestorKeyLookup($C$4,G$23,G$24,$A29),"-") -> 30172000 | H29: =IFERROR(_xll.QuestorKeyLookup($C$4,H$23,H$24,$A29),"-") -> 38500000 | I29: =IFERROR(_xll.QuestorKeyLookup($C$4,I$23,I$24,$A29),"-") -> 40600000
B30: Change from previous year | D30: =IFERROR(D29/C29-1,"-") -> -0.06319244973 | E30: =IFERROR(E29/D29-1,"-") -> 0.2282084976 | F30: =IFERROR(F29/E29-1,"-") -> 0.02172221502 | G30: =IFERROR(G29/F29-1,"-") -> -0.04258424827 | H30: =IFERROR(H29/G29-1,"-") -> 0.2760174997 | I30: =IFERROR(I29/H29-1,"-") -> 0.05454545455
A31: 112514 | B31: =_xll.QuestorKeyNameEN(A31) -> Sales - Meat | C31: =IFERROR(_xll.QuestorKeyLookup($C$4,C$23,C$24,$A31),"-") -> 25769000 | D31: =IFERROR(_xll.QuestorKeyLookup($C$4,D$23,D$24,$A31),"-") -> 28590000 | E31: =IFERROR(_xll.QuestorKeyLookup($C$4,E$23,E$24,$A31),"-") -> 36277000 | F31: =IFERROR(_xll.QuestorKeyLookup($C$4,F$23,F$24,$A31),"-") -> 63256000 | G31: =IFERROR(_xll.QuestorKeyLookup($C$4,G$23,G$24,$A31),"-") -> 85115000 | H31: =IFERROR(_xll.QuestorKeyLookup($C$4,H$23,H$24,$A31),"-") -> 88800000 | I31: =IFERROR(_xll.QuestorKeyLookup($C$4,I$23,I$24,$A31),"-") -> 100800000
B32: Change from previous year | D32: =IFERROR(D31/C31-1,"-") -> 0.1094726221 | E32: =IFERROR(E31/D31-1,"-") -> 0.2688702343 | F32: =IFERROR(F31/E31-1,"-") -> 0.7436943518 | G32: =IFERROR(G31/F31-1,"-") -> 0.3455640572 | H32: =IFERROR(H31/G31-1,"-") -> 0.04329436645 | I32: =IFERROR(I31/H31-1,"-") -> 0.1351351351
A33: 112515 | B33: =_xll.QuestorKeyNameEN(A33) -> Sales - Further processing | C33: =IFERROR(_xll.QuestorKeyLookup($C$4,C$23,C$24,$A33),"-") -> 25204000 | D33: =IFERROR(_xll.QuestorKeyLookup($C$4,D$23,D$24,$A33),"-") -> 18052000 | E33: =IFERROR(_xll.QuestorKeyLookup($C$4,E$23,E$24,$A33),"-") -> 30732000 | F33: =IFERROR(_xll.QuestorKeyLookup($C$4,F$23,F$24,$A33),"-") -> 0 | G33: =IFERROR(_xll.QuestorKeyLookup($C$4,G$23,G$24,$A33),"-") -> 0 | H33: =IFERROR(_xll.QuestorKeyLookup($C$4,H$23,H$24,$A33),"-") -> 0 | I33: =IFERROR(_xll.QuestorKeyLookup($C$4,I$23,I$24,$A33),"-") -> 0
A34: 113990 | B34: =_xll.QuestorKeyNameEN(A34) -> Sale of goods and services [other] | C34: =IFERROR(_xll.QuestorKeyLookup($C$4,C$23,C$24,$A34),"-") -> 3063000 | D34: =IFERROR(_xll.QuestorKeyLookup($C$4,D$23,D$24,$A34),"-") -> 3223000 | E34: =IFERROR(_xll.QuestorKeyLookup($C$4,E$23,E$24,$A34),"-") -> 2853000 | F34: =IFERROR(_xll.QuestorKeyLookup($C$4,F$23,F$24,$A34),"-") -> 1420000 | G34: =IFERROR(_xll.QuestorKeyLookup($C$4,G$23,G$24,$A34),"-") -> 2221000 | H34: =IFERROR(_xll.QuestorKeyLookup($C$4,H$23,H$24,$A34),"-") -> 3700000 | I34: =IFERROR(_xll.QuestorKeyLookup($C$4,I$23,I$24,$A34),"-") -> 9200000
A35: 120000 | B35: =_xll.QuestorKeyNameEN(A35) -> Cost of revenue | C35: =IFERROR(_xll.QuestorKeyLookup($C$4,C$23,C$24,$A35),"-") -> -100519000 | D35: =IFERROR(_xll.QuestorKeyLookup($C$4,D$23,D$24,$A35),"-") -> -102608000 | E35: =IFERROR(_xll.QuestorKeyLookup($C$4,E$23,E$24,$A35),"-") -> -129716000 | F35: =IFERROR(_xll.QuestorKeyLookup($C$4,F$23,F$24,$A35),"-") -> -128024000 | G35: =IFERROR(_xll.QuestorKeyLookup($C$4,G$23,G$24,$A35),"-") -> -153019000 | H35: =IFERROR(_xll.QuestorKeyLookup($C$4,H$23,H$24,$A35),"-") -> -176900000 | I35: =IFERROR(_xll.QuestorKeyLookup($C$4,I$23,I$24,$A35),"-") -> -199200000
A36: 910300 | B36: =_xll.QuestorKeyNameEN(A36) -> Gross profit | C36: =IFERROR(_xll.QuestorKeyLookup($C$4,C$23,C$24,$A36),"-") -> 57509000 | D36: =IFERROR(_xll.QuestorKeyLookup($C$4,D$23,D$24,$A36),"-") -> 52149000 | E36: =IFERROR(_xll.QuestorKeyLookup($C$4,E$23,E$24,$A36),"-") -> 79595000 | F36: =IFERROR(_xll.QuestorKeyLookup($C$4,F$23,F$24,$A36),"-") -> 92607000 | G36: =IFERROR(_xll.QuestorKeyLookup($C$4,G$23,G$24,$A36),"-") -> 99445000 | H36: =IFERROR(_xll.QuestorKeyLookup($C$4,H$23,H$24,$A36),"-") -> 111500000 | I36: =IFERROR(_xll.QuestorKeyLookup($C$4,I$23,I$24,$A36),"-") -> 125400000
A37: 130000 | B37: =_xll.QuestorKeyNameEN(A37) -> Other operating income | C37: =IFERROR(_xll.QuestorKeyLookup($C$4,C$23,C$24,$A37),"-") -> 2000 | D37: =IFERROR(_xll.QuestorKeyLookup($C$4,D$23,D$24,$A37),"-") -> 3000 | E37: =IFERROR(_xll.QuestorKeyLookup($C$4,E$23,E$24,$A37),"-") -> 0 | F37: =IFERROR(_xll.QuestorKeyLookup($C$4,F$23,F$24,$A37),"-") -> 81000 | G37: =IFERROR(_xll.QuestorKeyLookup($C$4,G$23,G$24,$A37),"-") -> 0 | H37: =IFERROR(_xll.QuestorKeyLookup($C$4,H$23,H$24,$A37),"-") -> 0 | I37: =IFERROR(_xll.QuestorKeyLookup($C$4,I$23,I$24,$A37),"-") -> 0
A38: 910100 | B38: =_xll.QuestorKeyNameEN(A38) -> All income | C38: =IFERROR(_xll.QuestorKeyLookup($C$4,C$23,C$24,$A38),"-") -> 158030000 | D38: =IFERROR(_xll.QuestorKeyLookup($C$4,D$23,D$24,$A38),"-") -> 154760000 | E38: =IFERROR(_xll.QuestorKeyLookup($C$4,E$23,E$24,$A38),"-") -> 209311000 | F38: =IFERROR(_xll.QuestorKeyLookup($C$4,F$23,F$24,$A38),"-") -> 220712000 | G38: =IFERROR(_xll.QuestorKeyLookup($C$4,G$23,G$24,$A38),"-") -> 252464000 | H38: =IFERROR(_xll.QuestorKeyLookup($C$4,H$23,H$24,$A38),"-") -> 288400000 | I38: =IFERROR(_xll.QuestorKeyLookup($C$4,I$23,I$24,$A38),"-") -> 324600000
B39: Change from previous year | D39: =IFERROR(D38/C38-1,"-") -> -0.02069227362 | E39: =IFERROR(E38/D38-1,"-") -> 0.3524877229 | F39: =IFERROR(F38/E38-1,"-") -> 0.054469187 | G39: =IFERROR(G38/F38-1,"-") -> 0.143861684 | H39: =IFERROR(H38/G38-1,"-") -> 0.1423410863 | I39: =IFERROR(I38/H38-1,"-") -> 0.125520111
A40: 135000 | B40: =_xll.QuestorKeyNameEN(A40) -> Operating expenses | C40: =IFERROR(_xll.QuestorKeyLookup($C$4,C$23,C$24,$A40),"-") -> -47180000 | D40: =IFERROR(_xll.QuestorKeyLookup($C$4,D$23,D$24,$A40),"-") -> -51133000 | E40: =IFERROR(_xll.QuestorKeyLookup($C$4,E$23,E$24,$A40),"-") -> -63351000 | F40: =IFERROR(_xll.QuestorKeyLookup($C$4,F$23,F$24,$A40),"-") -> -61565000 | G40: =IFERROR(_xll.QuestorKeyLookup($C$4,G$23,G$24,$A40),"-") -> -61753000 | H40: =IFERROR(_xll.QuestorKeyLookup($C$4,H$23,H$24,$A40),"-") -> -67700000 | I40: =IFERROR(_xll.QuestorKeyLookup($C$4,I$23,I$24,$A40),"-") -> -80500000
A41: 135100 | B41: =_xll.QuestorKeyNameEN(A41) -> Sales and marketing expenses | C41: =IFERROR(_xll.QuestorKeyLookup($C$4,C$23,C$24,$A41),"-") -> -24072000 | D41: =IFERROR(_xll.QuestorKeyLookup($C$4,D$23,D$24,$A41),"-") -> -25807000 | E41: =IFERROR(_xll.QuestorKeyLookup($C$4,E$23,E$24,$A41),"-") -> -28263000 | F41: =IFERROR(_xll.QuestorKeyLookup($C$4,F$23,F$24,$A41),"-") -> -30452000 | G41: =IFERROR(_xll.QuestorKeyLookup($C$4,G$23,G$24,$A41),"-") -> -30958000 | H41: =IFERROR(_xll.QuestorKeyLookup($C$4,H$23,H$24,$A41),"-") -> -32600000 | I41: =IFERROR(_xll.QuestorKeyLookup($C$4,I$23,I$24,$A41),"-") -> -39000000
A42: 135300 | B42: =_xll.QuestorKeyNameEN(A42) -> Administrative expenses | C42: =IFERROR(_xll.QuestorKeyLookup($C$4,C$23,C$24,$A42),"-") -> -11911000 | D42: =IFERROR(_xll.QuestorKeyLookup($C$4,D$23,D$24,$A42),"-") -> -12867000 | E42: =IFERROR(_xll.QuestorKeyLookup($C$4,E$23,E$24,$A42),"-") -> -15228000 | F42: =IFERROR(_xll.QuestorKeyLookup($C$4,F$23,F$24,$A42),"-") -> -15806000 | G42: =IFERROR(_xll.QuestorKeyLookup($C$4,G$23,G$24,$A42),"-") -> -16880000 | H42: =IFERROR(_xll.QuestorKeyLookup($C$4,H$23,H$24,$A42),"-") -> -17700000 | I42: =IFERROR(_xll.QuestorKeyLookup($C$4,I$23,I$24,$A42),"-") -> -20100000
A43: 135500 | B43: =_xll.QuestorKeyNameEN(A43) -> Research and development | C43: =IFERROR(_xll.QuestorKeyLookup($C$4,C$23,C$24,$A43),"-") -> -11197000 | D43: =IFERROR(_xll.QuestorKeyLookup($C$4,D$23,D$24,$A43),"-") -> -12459000 | E43: =IFERROR(_xll.QuestorKeyLookup($C$4,E$23,E$24,$A43),"-") -> -16055000 | F43: =IFERROR(_xll.QuestorKeyLookup($C$4,F$23,F$24,$A43),"-") -> -15307000 | G43: =IFERROR(_xll.QuestorKeyLookup($C$4,G$23,G$24,$A43),"-") -> -13915000 | H43: =IFERROR(_xll.QuestorKeyLookup($C$4,H$23,H$24,$A43),"-") -> -17400000 | I43: =IFERROR(_xll.QuestorKeyLookup($C$4,I$23,I$24,$A43),"-") -> -21400000
A44: 135999 | B44: =_xll.QuestorKeyNameEN(A44) -> Operating expenses [other] | C44: =IFERROR(_xll.QuestorKeyLookup($C$4,C$23,C$24,$A44),"-") -> 0 | D44: =IFERROR(_xll.QuestorKeyLookup($C$4,D$23,D$24,$A44),"-") -> 0 | E44: =IFERROR(_xll.QuestorKeyLookup($C$4,E$23,E$24,$A44),"-") -> -3805000 | F44: =IFERROR(_xll.QuestorKeyLookup($C$4,F$23,F$24,$A44),"-") -> 0 | G44: =IFERROR(_xll.QuestorKeyLookup($C$4,G$23,G$24,$A44),"-") -> 0 | H44: =IFERROR(_xll.QuestorKeyLookup($C$4,H$23,H$24,$A44),"-") -> 0 | I44: =IFERROR(_xll.QuestorKeyLookup($C$4,I$23,I$24,$A44),"-") -> 0
A45: 910400 | B45: =_xll.QuestorKeyNameEN(A45) -> EBITDA | C45: =IFERROR(_xll.QuestorKeyLookup($C$4,C$23,C$24,$A45),"-") -> 16858000 | D45: =IFERROR(_xll.QuestorKeyLookup($C$4,D$23,D$24,$A45),"-") -> 8071000 | E45: =IFERROR(_xll.QuestorKeyLookup($C$4,E$23,E$24,$A45),"-") -> 29393000 | F45: =IFERROR(_xll.QuestorKeyLookup($C$4,F$23,F$24,$A45),"-") -> 38185000 | G45: =IFERROR(_xll.QuestorKeyLookup($C$4,G$23,G$24,$A45),"-") -> 45955000 | H45: =IFERROR(_xll.QuestorKeyLookup($C$4,H$23,H$24,$A45),"-") -> 55300000 | I45: =IFERROR(_xll.QuestorKeyLookup($C$4,I$23,I$24,$A45),"-") -> 59100000
B46: Change from previous year | D46: =IFERROR(D45/C45-1,"-") -> -0.5212362083 | E46: =IFERROR(E45/D45-1,"-") -> 2.64180399 | F46: =IFERROR(F45/E45-1,"-") -> 0.2991188378 | G46: =IFERROR(G45/F45-1,"-") -> 0.2034830431 | H46: =IFERROR(H45/G45-1,"-") -> 0.2033511043 | I46: =IFERROR(I45/H45-1,"-") -> 0.06871609403
A47: 114550 | B47: =_xll.QuestorKeyNameEN(A47) -> Amortization of acquisition-related intangible assets | C47: =IFERROR(_xll.QuestorKeyLookup($C$4,C$23,C$24,$A47),"-") -> 0 | D47: =IFERROR(_xll.QuestorKeyLookup($C$4,D$23,D$24,$A47),"-") -> 0 | E47: =IFERROR(_xll.QuestorKeyLookup($C$4,E$23,E$24,$A47),"-") -> 0 | F47: =IFERROR(_xll.QuestorKeyLookup($C$4,F$23,F$24,$A47),"-") -> -4547000 | G47: =IFERROR(_xll.QuestorKeyLookup($C$4,G$23,G$24,$A47),"-") -> -6217000 | H47: =IFERROR(_xll.QuestorKeyLookup($C$4,H$23,H$24,$A47),"-") -> -2300000 | I47: =IFERROR(_xll.QuestorKeyLookup($C$4,I$23,I$24,$A47),"-") -> 0
A48: 910500 | B48: =_xll.QuestorKeyNameEN(A48) -> EBIT | C48: =IFERROR(_xll.QuestorKeyLookup($C$4,C$23,C$24,$A48),"-") -> 10331000 | D48: =IFERROR(_xll.QuestorKeyLookup($C$4,D$23,D$24,$A48),"-") -> 1019000 | E48: =IFERROR(_xll.QuestorKeyLookup($C$4,E$23,E$24,$A48),"-") -> 16244000 | F48: =IFERROR(_xll.QuestorKeyLookup($C$4,F$23,F$24,$A48),"-") -> 26576000 | G48: =IFERROR(_xll.QuestorKeyLookup($C$4,G$23,G$24,$A48),"-") -> 31475000 | H48: =IFERROR(_xll.QuestorKeyLookup($C$4,H$23,H$24,$A48),"-") -> 41500000 | I48: =IFERROR(_xll.QuestorKeyLookup($C$4,I$23,I$24,$A48),"-") -> 44900000
A49: 150000 | B49: =_xll.QuestorKeyNameEN(A49) -> Financing | C49: =IFERROR(_xll.QuestorKeyLookup($C$4,C$23,C$24,$A49),"-") -> -3743000 | D49: =IFERROR(_xll.QuestorKeyLookup($C$4,D$23,D$24,$A49),"-") -> -3659000 | E49: =IFERROR(_xll.QuestorKeyLookup($C$4,E$23,E$24,$A49),"-") -> -12000 | F49: =IFERROR(_xll.QuestorKeyLookup($C$4,F$23,F$24,$A49),"-") -> -8948000 | G49: =IFERROR(_xll.QuestorKeyLookup($C$4,G$23,G$24,$A49),"-") -> -3783000 | H49: =IFERROR(_xll.QuestorKeyLookup($C$4,H$23,H$24,$A49),"-") -> -6000000 | I49: =IFERROR(_xll.QuestorKeyLookup($C$4,I$23,I$24,$A49),"-") -> -3800000
A50: 151000 | B50: =_xll.QuestorKeyNameEN(A50) -> Finance income | C50: =IFERROR(_xll.QuestorKeyLookup($C$4,C$23,C$24,$A50),"-") -> 72000 | D50: =IFERROR(_xll.QuestorKeyLookup($C$4,D$23,D$24,$A50),"-") -> 23000 | E50: =IFERROR(_xll.QuestorKeyLookup($C$4,E$23,E$24,$A50),"-") -> 3479000 | F50: =IFERROR(_xll.QuestorKeyLookup($C$4,F$23,F$24,$A50),"-") -> 132000 | G50: =IFERROR(_xll.QuestorKeyLookup($C$4,G$23,G$24,$A50),"-") -> 807000 | H50: =IFERROR(_xll.QuestorKeyLookup($C$4,H$23,H$24,$A50),"-") -> 400000 | I50: =IFERROR(_xll.QuestorKeyLookup($C$4,I$23,I$24,$A50),"-") -> 800000
A51: 152000 | B51: =_xll.QuestorKeyNameEN(A51) -> Finance expenses | C51: =IFERROR(_xll.QuestorKeyLookup($C$4,C$23,C$24,$A51),"-") -> -3815000 | D51: =IFERROR(_xll.QuestorKeyLookup($C$4,D$23,D$24,$A51),"-") -> -3682000 | E51: =IFERROR(_xll.QuestorKeyLookup($C$4,E$23,E$24,$A51),"-") -> -3491000 | F51: =IFERROR(_xll.QuestorKeyLookup($C$4,F$23,F$24,$A51),"-") -> -9080000 | G51: =IFERROR(_xll.QuestorKeyLookup($C$4,G$23,G$24,$A51),"-") -> -4590000 | H51: =IFERROR(_xll.QuestorKeyLookup($C$4,H$23,H$24,$A51),"-") -> -6400000 | I51: =IFERROR(_xll.QuestorKeyLookup($C$4,I$23,I$24,$A51),"-") -> -4600000
A52: 910600 | B52: =_xll.QuestorKeyNameEN(A52) -> EBT | C52: =IFERROR(_xll.QuestorKeyLookup($C$4,C$23,C$24,$A52),"-") -> 6588000 | D52: =IFERROR(_xll.QuestorKeyLookup($C$4,D$23,D$24,$A52),"-") -> -2640000 | E52: =IFERROR(_xll.QuestorKeyLookup($C$4,E$23,E$24,$A52),"-") -> 16232000 | F52: =IFERROR(_xll.QuestorKeyLookup($C$4,F$23,F$24,$A52),"-") -> 17628000 | G52: =IFERROR(_xll.QuestorKeyLookup($C$4,G$23,G$24,$A52),"-") -> 27692000 | H52: =IFERROR(_xll.QuestorKeyLookup($C$4,H$23,H$24,$A52),"-") -> 35500000 | I52: =IFERROR(_xll.QuestorKeyLookup($C$4,I$23,I$24,$A52),"-") -> 41100000
A53: 170000 | B53: =_xll.QuestorKeyNameEN(A53) -> Income tax | C53: =IFERROR(_xll.QuestorKeyLookup($C$4,C$23,C$24,$A53),"-") -> -866000 | D53: =IFERROR(_xll.QuestorKeyLookup($C$4,D$23,D$24,$A53),"-") -> 769000 | E53: =IFERROR(_xll.QuestorKeyLookup($C$4,E$23,E$24,$A53),"-") -> -3612000 | F53: =IFERROR(_xll.QuestorKeyLookup($C$4,F$23,F$24,$A53),"-") -> -3876000 | G53: =IFERROR(_xll.QuestorKeyLookup($C$4,G$23,G$24,$A53),"-") -> -6343000 | H53: =IFERROR(_xll.QuestorKeyLookup($C$4,H$23,H$24,$A53),"-") -> -7200000 | I53: =IFERROR(_xll.QuestorKeyLookup($C$4,I$23,I$24,$A53),"-") -> -8900000
A54: 180000 | B54: =_xll.QuestorKeyNameEN(A54) -> Other matters after tax | C54: =IFERROR(_xll.QuestorKeyLookup($C$4,C$23,C$24,$A54),"-") -> 0 | D54: =IFERROR(_xll.QuestorKeyLookup($C$4,D$23,D$24,$A54),"-") -> 0 | E54: =IFERROR(_xll.QuestorKeyLookup($C$4,E$23,E$24,$A54),"-") -> 0 | F54: =IFERROR(_xll.QuestorKeyLookup($C$4,F$23,F$24,$A54),"-") -> 0 | G54: =IFERROR(_xll.QuestorKeyLookup($C$4,G$23,G$24,$A54),"-") -> 0 | H54: =IFERROR(_xll.QuestorKeyLookup($C$4,H$23,H$24,$A54),"-") -> 0 | I54: =IFERROR(_xll.QuestorKeyLookup($C$4,I$23,I$24,$A54),"-") -> 0
A55: 910700 | B55: =_xll.QuestorKeyNameEN(A55) -> Earnings | C55: =IFERROR(_xll.QuestorKeyLookup($C$4,C$23,C$24,$A55),"-") -> 5722000 | D55: =IFERROR(_xll.QuestorKeyLookup($C$4,D$23,D$24,$A55),"-") -> -1871000 | E55: =IFERROR(_xll.QuestorKeyLookup($C$4,E$23,E$24,$A55),"-") -> 12620000 | F55: =IFERROR(_xll.QuestorKeyLookup($C$4,F$23,F$24,$A55),"-") -> 13752000 | G55: =IFERROR(_xll.QuestorKeyLookup($C$4,G$23,G$24,$A55),"-") -> 21349000 | H55: =IFERROR(_xll.QuestorKeyLookup($C$4,H$23,H$24,$A55),"-") -> 28300000 | I55: =IFERROR(_xll.QuestorKeyLookup($C$4,I$23,I$24,$A55),"-") -> 32200000
A56: 910950 | B56: =_xll.QuestorKeyNameEN(A56) -> EBITDA ratio | C56: =IFERROR(_xll.QuestorKeyLookup($C$4,C$23,C$24,$A56),"-") -> 0.1067 | D56: =IFERROR(_xll.QuestorKeyLookup($C$4,D$23,D$24,$A56),"-") -> 0.0522 | E56: =IFERROR(_xll.QuestorKeyLookup($C$4,E$23,E$24,$A56),"-") -> 0.1404 | F56: =IFERROR(_xll.QuestorKeyLookup($C$4,F$23,F$24,$A56),"-") -> 0.173 | G56: =IFERROR(_xll.QuestorKeyLookup($C$4,G$23,G$24,$A56),"-") -> 0.182 | H56: =IFERROR(_xll.QuestorKeyLookup($C$4,H$23,H$24,$A56),"-") -> 0.1917 | I56: =IFERROR(_xll.QuestorKeyLookup($C$4,I$23,I$24,$A56),"-") -> 0.1821
B61: Ath.
B62: Fjárhagsupplýsingar eru unnar upp úr útgefnum árs- og árshlutauppgjörum skráðra félaga. Innsláttarvillur geta átt sér stað og ábendingar þess efnis eru vel þegnar en senda má póst á help@kodi.is.
